lending/lending_fUSD_20251218
["ID","MTS","AMOUNT","RATE_DAILY","PERIOD"]
[399023640,1766074038934,-696.45,0.00041099,120]
[399023641,1766074039014,-1888.92,0.00041099,120]
[399023642,1766074039094,-1734759.45145849,0.000411,120]
[399023643,1766074039178,-1979221.63329773,0.000411,120]
[399023644,1766074114935,-250.0,0.00041041,60]
[399023645,1766074115020,-500.0,0.00041095,120]
[399023646,1766074115105,-556.31,0.00041095,120]
[399023647,1766074115184,-556.31,0.00041095,120]
[399023648,1766074115262,-556.31,0.00041095,120]
[399023649,1766074115336,-556.31,0.00041095,120]
[399023650,1766074115413,-500.0,0.00041095,120]
[399023651,1766074115492,-556.31,0.00041095,120]
[399023652,1766074115570,-556.31,0.00041095,120]
[399023653,1766074115644,-500.0,0.00041095,120]
[399023654,1766074115718,-500.0,0.00041095,120]
[399023655,1766074115795,-415.79,0.00041095,120]
[399023656,1766074115868,-500.0,0.00041095,120]
[399023657,1766074115942,-500.0,0.00041095,120]
[399023658,1766074116016,-500.0,0.00041095,120]
[399023659,1766074116092,-500.0,0.00041095,120]
[399023660,1766074116167,-500.0,0.00041095,120]
[399023661,1766074116251,-500.0,0.00041095,120]
[399023662,1766074116329,-500.0,0.00041095,120]
[399023663,1766074116405,-500.0,0.00041095,120]
[399023664,1766074116483,-500.0,0.00041095,120]
[399023665,1766074116560,-500.0,0.00041095,120]
[399023666,1766074116632,-500.0,0.00041095,120]
[399023667,1766074116703,-500.0,0.00041095,120]
[399023668,1766074116776,-500.0,0.00041095,120]
[399023669,1766074116851,-500.0,0.00041095,120]
[399023670,1766074116929,-500.0,0.00041095,120]
[399023671,1766074117006,-500.0,0.00041095,120]
[399023672,1766074117081,-500.0,0.00041095,120]
[399023673,1766074117156,-500.0,0.00041095,120]
[399023674,1766074117233,-500.0,0.00041095,120]
[399023675,1766074117309,-500.0,0.00041095,120]
[399023676,1766074117382,-500.0,0.00041095,120]
[399023677,1766074117458,-500.0,0.00041095,120]
[399023678,1766074117532,-196.12,0.00041095,120]
[399023679,1766074117608,-500.0,0.00041095,120]
[399023680,1766074117679,-500.0,0.00041095,120]
[399023681,1766074117751,-500.0,0.00041095,120]
[399023682,1766074117823,-2077.92,0.00041095,120]
[399023683,1766074117894,-2077.92,0.00041095,120]
[399023684,1766074117967,-500.0,0.00041095,120]
[399023685,1766074118040,-500.0,0.00041095,120]
[399023686,1766074118110,-2077.92,0.00041095,120]
[399023687,1766074118185,-500.0,0.00041095,120]
[399023688,1766074118258,-2077.92,0.00041095,120]
[399023689,1766074118327,-500.0,0.00041095,120]
[399023690,1766074118399,-500.0,0.00041095,120]
[399023691,1766074118467,-500.0,0.00041095,120]
[399023692,1766074118536,-500.0,0.00041095,120]
[399023693,1766074118603,-500.0,0.00041095,120]
[399023694,1766074118674,-500.0,0.00041095,120]
[399023695,1766074118746,-500.0,0.00041095,120]
[399023696,1766074118816,-500.0,0.00041095,120]
[399023697,1766074118888,-500.0,0.00041095,120]
[399023698,1766074118959,-500.0,0.00041095,120]
[399023699,1766074119033,-500.0,0.00041095,120]
[399023700,1766074119106,-500.0,0.00041095,120]
[399023701,1766074119180,-322.43,0.00041095,120]
[399023702,1766074119615,-500.0,0.00041095,120]
[399023703,1766074119693,-574.18,0.00041095,120]
[399023704,1766074119769,-500.0,0.00041095,120]
[399023705,1766074119842,-500.0,0.00041095,120]
[399023706,1766074119913,-500.0,0.00041095,120]
[399023707,1766074119984,-500.0,0.00041095,120]
[399023708,1766074120055,-500.0,0.00041095,120]
[399023709,1766074120125,-500.0,0.00041095,120]
[399023710,1766074120202,-500.0,0.00041095,120]
[399023711,1766074120274,-500.0,0.00041095,120]
[399023712,1766074120355,-500.0,0.00041095,120]
[399023713,1766074120435,-500.0,0.00041095,120]
[399023714,1766074120507,-832.57,0.00041095,120]
[399023715,1766074120577,-832.57,0.00041095,120]
[399023716,1766074120644,-832.57,0.00041095,120]
[399023717,1766074120712,-832.57,0.00041095,120]
[399023718,1766074120782,-832.57,0.00041095,120]
[399023719,1766074120849,-832.57,0.00041095,120]
[399023720,1766074120920,-832.57,0.00041095,120]
[399023721,1766074120993,-967.7,0.00041095,120]
[399023722,1766074121068,-967.7,0.00041095,120]
[399023723,1766074121138,-967.7,0.00041095,120]
[399023724,1766074121212,-967.7,0.00041095,120]
[399023725,1766074121286,-967.7,0.00041095,120]
[399023726,1766074121356,-967.7,0.00041095,120]
[399023727,1766074121429,-967.7,0.00041095,120]
[399023728,1766074121502,-150.0,0.00041096,120]
[399023729,1766074121572,-150.0,0.00041096,120]
[399023730,1766074121641,-150.0,0.00041096,120]
[399023731,1766074121710,-200.0,0.00041096,120]
[399023732,1766074121781,-158.38175022,0.00041096,120]
[399023733,1766074121857,-500.0,0.00041096,120]
[399023734,1766074121927,-150.0,0.00041096,120]
[399023735,1766074121999,-500.0,0.00041096,120]
[399023736,1766074122072,-150.0,0.00041096,120]
[399023737,1766074122145,-500.0,0.00041096,120]
[399023738,1766074122222,-150.0,0.00041096,120]
[399023739,1766074122293,-428.0,0.00041096,120]
[399023740,1766074122366,-150.0,0.00041096,120]
[399023741,1766074122439,-150.0,0.00041096,120]
[399023742,1766074122514,-150.0,0.00041096,120]
[399023743,1766074122585,-150.0,0.00041096,120]
[399023744,1766074122652,-150.0,0.00041096,120]
[399023745,1766074122719,-150.0,0.00041096,120]
[399023746,1766074122783,-258.88,0.00041096,120]
[399023747,1766074122851,-500.0,0.00041097,120]
[399023748,1766074122932,-832.57,0.00041097,120]
[399023749,1766074123003,-500.0,0.00041098,120]
[399023750,1766074123085,-452.56,0.00041098,120]
[399023751,1766074123158,-500.0,0.00041098,120]
[399023752,1766074123232,-832.57,0.00041098,120]
[399023753,1766074123308,-1888.92,0.00041099,120]
[399023754,1766074123382,-696.45,0.00041099,120]
[399023755,1766074123458,-1888.92,0.00041099,120]
[399023756,1766074123536,-696.45,0.00041099,120]
[399023757,1766074123618,-1888.92,0.00041099,120]
[399023758,1766074123692,-1889.1,0.00041099,120]
[399023759,1766074123766,-696.45,0.00041099,120]
[399023760,1766074123841,-696.45,0.00041099,120]
[399023761,1766074123916,-696.45,0.00041099,120]
[399023762,1766074123993,-696.66,0.00041099,120]
[399023763,1766074124070,-500.0,0.00041099,120]
[399023764,1766074124152,-500.0,0.00041099,120]
[399023765,1766074124235,-269.01,0.00041099,120]
[399023766,1766074124310,-832.57,0.00041099,120]
[399023767,1766074124382,-832.57,0.00041099,120]
[399023768,1766074124449,-832.57,0.00041099,120]
[399023769,1766074124515,-832.57,0.00041099,120]
[399023770,1766074124583,-832.57,0.00041099,120]
[399023771,1766074124653,-832.57,0.00041099,120]
[399023772,1766074124724,-832.57,0.00041099,120]
[399023773,1766074124792,-832.57,0.00041099,120]
[399023774,1766074124864,-832.57,0.00041099,120]
[399023775,1766074124935,-832.57,0.00041099,120]
[399023776,1766074125007,-832.57,0.00041099,120]
[399023777,1766074125076,-832.57,0.00041099,120]
[399023778,1766074125157,-832.57,0.00041099,120]
[399023779,1766074125231,-832.57,0.00041099,120]
[399023780,1766074125303,-832.78,0.00041099,120]
[399023781,1766074125376,-20296.0,0.000411,120]
[399023782,1766074125452,-2020778.36670227,0.000411,120]
[399023783,1766074125528,-1871960.18154751,0.000411,120]
[399023784,1766074139980,-2194.56,0.00041094,120]
[399023785,1766074140065,-500.0,0.00041095,120]
[399023786,1766074140142,-500.0,0.00041095,120]
[399023787,1766074140217,-500.0,0.00041095,120]
[399023788,1766074140294,-500.0,0.00041095,120]
[399023789,1766074140368,-500.0,0.00041095,120]
[399023790,1766074140444,-500.0,0.00041095,120]
[399023791,1766074140520,-500.0,0.00041095,120]
[399023792,1766074140595,-500.0,0.00041097,120]
[399023793,1766074140669,-500.0,0.00041098,120]
[399023794,1766074140744,-2128039.81845249,0.000411,120]
[399023795,1766074140817,-1865265.62154751,0.000411,120]
[399023796,1766074148247,-1000.0,0.00034907,30]
[399023797,1766074148327,-1000.0,0.00035615,30]
[399023798,1766074148402,-1000.0,0.00039119,30]
[399023799,1766074148480,-1000.0,0.00040699,30]
[399023800,1766074148559,-150.0,0.00040846,30]
[399023801,1766074148651,-1000.0,0.00041094,30]
[399023802,1766074148731,-1000.0,0.00041095,30]
[399023803,1766074148805,-1000.0,0.00041098,30]
[399023804,1766074148878,-1000.0,0.00041099,30]
[399023805,1766074148953,-2134734.37845249,0.000411,120]
[399023806,1766074149029,-4000000.0,0.000411,120]
[399023807,1766074149106,-153.27,0.000411,30]
[399023808,1766074149192,-164.78,0.000411,30]
[399023809,1766074149269,-234.82497314,0.000411,30]
[399023810,1766074149352,-74145.49910249,0.000411,30]
[399023811,1766074149429,-151.0,0.000411,120]
[399023812,1766074149503,-151.0,0.000411,120]
[399023813,1766074149583,-151.0,0.000411,120]
[399023814,1766074149659,-500.0,0.00041235,120]
[399023815,1766074149729,-26372.88305575,0.0004131,120]
[399023816,1766074149793,-298.65528516,0.0004142,120]
[399023817,1766074149857,-224.02917476,0.0004146,120]
[399023818,1766074149922,-250.0,0.000415,45]
[399023819,1766074149988,-500.0,0.00041799,120]
[399023820,1766074150057,-432.36662599,0.00041799,120]
[399023821,1766074150126,-539.1,0.00041799,120]
[399023822,1766074150202,-628.48,0.00041799,120]
[399023823,1766074150279,-628.48,0.00041799,120]
[399023824,1766074150361,-628.48,0.00041799,120]
[399023825,1766074150433,-628.48,0.00041799,120]
[399023826,1766074150506,-244.25801832,0.00041799,120]
[399023827,1766074150578,-278.109033,0.000418,120]
[399023828,1766074150650,-50000.0,0.00042,42]
[399023829,1766074150720,-1000.0,0.00042,30]
[399023830,1766074150786,-440.66859506,0.00042,120]
[399023831,1766074150855,-168.43764731,0.00042,30]
[399023832,1766074150927,-1007.0,0.00042,30]
[399023833,1766074151000,-351.78685569,0.00042,120]
[399023834,1766074151074,-7335.8702397,0.00042,120]
[399023835,1766074151144,-150.57289317,0.000421,38]
[399023836,1766074151217,-2194.56,0.0004219,120]
[399023837,1766074151292,-153.27,0.000423,30]
[399023838,1766074151372,-74145.49910249,0.00042352,30]
[399023839,1766074151449,-1629588.8124,0.00042366,30]
[399023840,1766074151526,-472.502,0.00042424,64]
[399023841,1766074151602,-500.0,0.00042455,30]
[399023842,1766074151676,-500.0,0.00042455,30]
[399023843,1766074151744,-500.0,0.00042455,30]
[399023844,1766074151814,-500.0,0.00042455,30]
[399023845,1766074151888,-783.77,0.000425,120]
[399023846,1766074151965,-500.0,0.00042557,60]
[399023847,1766074152046,-500.0,0.00042557,60]
[399023848,1766074152128,-500.0,0.00042559,120]
[399023849,1766074152209,-500.0,0.00042559,120]
[399023850,1766074152286,-500.0,0.0004256,120]
[399023851,1766074152360,-500.0,0.0004256,120]
[399023852,1766074152431,-500.0,0.00042561,120]
[399023853,1766074152501,-500.0,0.00042561,120]
[399023854,1766074152568,-234.82497314,0.00042562,30]
[399023855,1766074152634,-74145.49910249,0.00042562,30]
[399023856,1766074152701,-74145.49910249,0.00042562,30]
[399023857,1766074152771,-500.0,0.00042563,120]
[399023858,1766074153310,-500.0,0.00042563,120]
[399023859,1766074153386,-500.0,0.00042563,120]
[399023860,1766074153459,-500.0,0.00042563,120]
[399023861,1766074153529,-519.15114964,0.00042563,120]
[399023862,1766074153596,-500.0,0.00042563,120]
[399023863,1766074153663,-500.0,0.00042563,120]
[399023864,1766074153730,-500.0,0.00042563,120]
[399023865,1766074153799,-500.0,0.00042563,120]
[399023866,1766074153869,-500.0,0.00042563,120]
[399023867,1766074153940,-327.3354914,0.00042563,120]
[399023868,1766074154014,-50000.0,0.00042575,30]
[399023869,1766074154088,-50000.0,0.00042575,31]
[399023870,1766074154161,-50000.0,0.00042575,32]
[399023871,1766074155791,-248.62576472,0.00042579,31]
[399023872,1766074156236,-388.44218062,0.00042579,31]
[399023873,1766074156319,-151.0,0.00042737,30]
[399023874,1766074156403,-156.587,0.00042737,31]
[399023875,1766074156480,-162.380719,0.00042737,32]
[399023876,1766074156555,-168.3888056,0.00042737,33]
[399023877,1766074156625,-174.61919141,0.00042737,34]
[399023878,1766074156704,-181.08010149,0.00042737,35]
[399023879,1766074156777,-187.78006525,0.00042737,36]
[399023880,1766074156848,-195.35934595,0.00042737,37]
[399023881,1766074156921,-500.0,0.00042737,30]
[399023882,1766074156993,-250.0,0.00042737,30]
[399023883,1766074157065,-160.85448045,0.00042737,30]
[399023884,1766074157138,-500.0,0.00042737,31]
[399023885,1766074157217,-250.0,0.00042737,31]
[399023886,1766074157289,-500.0,0.00042737,32]
[399023887,1766074157363,-212.22865418,0.00042737,30]
[399023888,1766074157433,-250.0,0.00042737,32]
[399023889,1766074157503,-500.0,0.00042737,33]
[399023890,1766074157573,-500.0,0.00042737,34]
[399023891,1766074157641,-250.0,0.00042737,33]
[399023892,1766074157707,-500.0,0.00042737,35]
[399023893,1766074157776,-250.0,0.00042737,34]
[399023894,1766074157847,-250.0,0.00042737,35]
[399023895,1766074157913,-500.0,0.00042737,30]
[399023896,1766074157983,-250.0,0.00042737,36]
[399023897,1766074158055,-500.0,0.00042737,30]
[399023898,1766074158125,-520.0,0.00042737,30]
[399023899,1766074158202,-500.0,0.00042737,31]
[399023900,1766074158274,-250.0,0.00042737,37]
[399023901,1766074158344,-500.0,0.00042737,31]
[399023902,1766074158414,-539.24,0.00042737,31]
[399023903,1766074158483,-500.0,0.00042737,32]
[399023904,1766074158553,-250.0,0.00042737,38]
[399023905,1766074158621,-500.0,0.00042737,32]
[399023906,1766074158689,-321.0837645,0.00042737,32]
[399023907,1766074158757,-500.0,0.00042737,33]
[399023908,1766074158826,-500.0,0.00042737,33]
[399023909,1766074158895,-500.0,0.00042737,34]
[399023910,1766074158965,-500.0,0.00042737,34]
[399023911,1766074159035,-500.0,0.00042737,35]
[399023912,1766074159106,-282.05677448,0.00042737,35]
[399023913,1766074159175,-500.0,0.00042737,36]
[399023914,1766074159251,-500.0,0.00042737,37]
[399023915,1766074159333,-500.0,0.00042737,38]
[399023916,1766074159412,-500.0,0.00042737,36]
[399023917,1766074159499,-414.0,0.00042737,30]
[399023918,1766074159584,-500.0,0.00042737,37]
[399023919,1766074159660,-429.318,0.00042737,31]
[399023920,1766074159741,-500.0,0.00042737,38]
[399023921,1766074159817,-445.202766,0.00042737,32]
[399023922,1766074159896,-461.67526834,0.00042737,33]
[399023923,1766074159968,-478.75725327,0.00042737,34]
[399023924,1766074160041,-496.47127164,0.00042737,35]
[399023925,1766074160113,-514.84070869,0.00042737,36]
[399023926,1766074160187,-533.88981491,0.00042737,37]
[399023927,1766074160256,-151.0,0.00042737,30]
[399023928,1766074160329,-151.0,0.00042737,31]
[399023929,1766074160400,-553.64373807,0.00042737,38]
[399023930,1766074160471,-151.0,0.00042737,32]
[399023931,1766074160543,-151.0,0.00042737,33]
[399023932,1766074160614,-151.0,0.00042737,34]
[399023933,1766074160686,-151.0,0.00042737,35]
[399023934,1766074160757,-151.0,0.00042737,36]
[399023935,1766074160831,-500.0,0.00042737,30]
[399023936,1766074160909,-151.0,0.00042737,37]
[399023937,1766074160984,-500.0,0.00042737,31]
[399023938,1766074161055,-151.0,0.00042737,38]
[399023939,1766074161134,-500.0,0.00042737,32]
[399023940,1766074161215,-500.0,0.00042737,33]
[399023941,1766074161288,-500.0,0.00042737,34]
[399023942,1766074161360,-500.0,0.00042737,35]
[399023943,1766074161435,-500.0,0.00042737,36]
[399023944,1766074161505,-500.0,0.00042737,37]
[399023945,1766074161582,-500.0,0.00042737,38]
[399023946,1766074161653,-500.0,0.0004274,120]
[399023947,1766074161724,-208.0,0.0004295,30]
[399023948,1766074161796,-6562.14618905,0.00043,120]
[399023949,1766074161871,-1000.0,0.00043,30]
[399023950,1766074161945,-1010.08057266,0.00043,120]
[399023951,1766074162017,-180.59696638,0.00043,120]
[399023952,1766074162093,-7372.0,0.00043,120]
[399023953,1766074162171,-250.0,0.00043,45]
[399023954,1766074162247,-384.85592785,0.000431,120]
[399023955,1766074162322,-5692.91867419,0.00043214,31]
[399023956,1766074162394,-88235.789,0.0004322,30]
[399023957,1766074162466,-2194.56,0.00043286,120]
[399023958,1766074162537,-153.27,0.000433,30]
[399023959,1766074162608,-56000.0,0.000435,120]
[399023960,1766074162687,-1043.3103265,0.00043576,120]
[399023961,1766074162758,-500.0,0.00043653,60]
[399023962,1766074162828,-500.0,0.00043653,60]
[399023963,1766074162899,-244.5291273,0.000437,120]
[399023964,1766074162974,-197.36239227,0.000438,30]
[399023965,1766074163052,-547.03,0.000438,120]
[399023966,1766074163129,-351.36566719,0.00043835,30]
[399023967,1766074163207,-348.59549934,0.00043835,30]
[399023968,1766074163670,-348.59549934,0.00043835,30]
[399023969,1766074163740,-800.0,0.00043836,31]
[399023970,1766074163813,-1102.13193732,0.00043987,120]
[399023971,1766074163891,-325033.70994823,0.00044,120]
[399023972,1766074163969,-168.0,0.00044,120]
[399023973,1766074164046,-200.0,0.00044,120]
[399023974,1766074164119,-12000.0,0.00044,30]
[399023975,1766074164200,-4355.25932049,0.00044,30]
[399023976,1766074164278,-261.01332118,0.00044,120]
[399023977,1766074164351,-312.80885714,0.00044,120]
[399023978,1766074164426,-100000.0,0.00044,120]
[399023979,1766074164498,-26101.41183132,0.00044,120]
[399023986,1766074231671,-300.0,0.00019107,2]
[399023987,1766074231683,-1200.0,0.00019107,2]
[399023988,1766074231693,-300.0,0.00019107,2]
[399023989,1766074231704,-1200.0,0.00019204,2]
[399023990,1766074231717,-195.0,0.00019204,2]
[399023991,1766074231727,-195.0,0.00019302,2]
[399023992,1766074231736,-250.0,0.00019302,2]
[399023993,1766074231746,-300.0,0.00019303,2]
[399023994,1766074231756,-300.0,0.00019303,2]
[399023995,1766074231765,-172.31937397,0.00019304,2]
[399023996,1766074231775,-172.31937397,0.00019304,2]
[399023997,1766074231784,-195.0,0.00019308,2]
[399023998,1766074231793,-250.0,0.00019308,2]
[399023999,1766074231803,-300.0,0.00019327,2]
[399024000,1766074231812,-300.0,0.00019327,2]
[399024001,1766074231822,-88.25353345,0.00019384,2]
[399024002,1766074231833,-1911.74646655,0.00019384,2]
[399024003,1766074231843,-1000.0,0.00019384,2]
[399024004,1766074231852,-899.47,0.00019384,2]
[399024005,1766074231862,-346.73,0.00019436,2]
[399024007,1766074231873,-1395.28,0.00019436,2]
[399024009,1766074231882,-300.0,0.00019799,2]
[399024011,1766074231892,-342.59695128,0.00019799,2]
[399024013,1766074231901,-2451.59460757,0.00019799,2]
[399024016,1766074231913,-685.82017469,0.00019799,2]
[399024018,1766074231922,-365.74510171,0.00019799,2]
[399024022,1766074231958,-2843.03206896,0.00019799,2]
[399024024,1766074231968,-2500.0,0.000198,2]
[399024026,1766074231977,-59184.59596088,0.000198,2]
[399024028,1766074231988,-68687.23412384,0.000198,2]
[399024047,1766074232164,-587.66205934,0.000198,2]
[399024050,1766074232176,-889.25305166,0.000198,2]
[399024078,1766074237798,-1586.66,0.000198,2]
[399024079,1766074237810,-340.00534089,0.000198,2]
[399024080,1766074237822,-741.7,0.000198,2]
[399024081,1766074237895,-907.14,0.000198,2]
[399024082,1766074237906,-91620.06819246,0.000198,2]
[399024108,1766074239745,-441.8301933,0.000198,2]
[399024111,1766074239757,-65723.03748034,0.000198,2]
[399024116,1766074239829,-10045.45113752,0.000198,2]
[399024117,1766074239908,-356.81525074,0.000198,2]
[399024118,1766074239919,-1731.41031661,0.000198,2]
[399024119,1766074239930,-595.0550745,0.000198,2]
[399024120,1766074239942,-16512.62240787,0.000198,2]
[399024121,1766074240136,-767.27792832,0.000198,2]
[399024122,1766074240148,-6310.9068042,0.000198,2]
[399024123,1766074240160,-29840.20339008,0.000198,2]
[399024124,1766074240173,-44345.0,0.000198,2]
[399024149,1766074242818,-1621.63540038,0.00019011,2]
[399024172,1766074245783,-11461.80897562,0.00019011,2]
[399024173,1766074245792,-103948.30152556,0.000198,2]
[399024174,1766074245875,-1753.349914,0.000198,2]
[399024175,1766074245886,-500.0,0.000198,2]
[399024176,1766074245897,-3955.88109788,0.000198,2]
[399024177,1766074246077,-134839.98575055,0.000198,2]
[399024179,1766074262528,153.56,0.00013699,2]
[399024182,1766074527639,741.57,0.00017451,2]
[399024185,1766075028033,-164.78,0.000307,30]
[399024186,1766075028111,-3240.0,0.00034623,120]
[399024187,1766075028188,-663.868,0.00034906,40]
[399024188,1766075028269,-170.323,0.00034906,40]
[399024189,1766075028353,-150.0,0.0004,120]
[399024190,1766075028431,-300.0,0.00040219,120]
[399024191,1766075028505,-450.0,0.00040438,120]
[399024192,1766075028578,-600.0,0.00040657,120]
[399024193,1766075028651,-5648.0,0.00040829,117]
[399024194,1766075028724,-150.0,0.00040846,30]
[399024195,1766075028797,-167.92083883,0.00040846,30]
[399024196,1766075028874,-750.0,0.00040876,120]
[399024197,1766075028946,-872.21,0.00041095,120]
[399024198,1766075029019,-1502.03,0.00041095,120]
[399024199,1766075029095,-1502.03,0.00041095,120]
[399024200,1766075029166,-1502.03,0.00041095,120]
[399024201,1766075029239,-1502.03,0.00041095,120]
[399024202,1766075029313,-1502.03,0.00041095,120]
[399024203,1766075029383,-1502.03,0.00041095,120]
[399024204,1766075029461,-1502.03,0.00041095,120]
[399024205,1766075029530,-500.0,0.00041095,120]
[399024206,1766075029597,-500.0,0.00041095,120]
[399024207,1766075029660,-500.0,0.00041095,120]
[399024208,1766075029721,-620.82242567,0.00041095,120]
[399024209,1766075029783,-500.0,0.00041095,120]
[399024210,1766075029846,-500.0,0.00041095,120]
[399024211,1766075029912,-500.0,0.00041095,120]
[399024212,1766075029979,-500.0,0.00041095,120]
[399024213,1766075030049,-1160.18,0.00041095,120]
[399024214,1766075030117,-500.0,0.00041095,120]
[399024215,1766075030183,-500.0,0.00041095,120]
[399024216,1766075030255,-500.0,0.00041095,120]
[399024217,1766075030325,-204.31031749,0.00041095,120]
[399024218,1766075030394,-500.0,0.00041095,120]
[399024219,1766075030465,-500.0,0.00041095,120]
[399024220,1766075030536,-500.0,0.00041095,120]
[399024221,1766075030602,-500.0,0.00041095,120]
[399024222,1766075030672,-500.0,0.00041095,120]
[399024223,1766075030739,-500.0,0.00041095,120]
[399024224,1766075030805,-500.0,0.00041095,120]
[399024225,1766075031355,-500.0,0.00041095,120]
[399024226,1766075031433,-500.0,0.00041095,120]
[399024227,1766075031517,-500.0,0.00041095,120]
[399024228,1766075031597,-500.0,0.00041095,120]
[399024229,1766075031679,-500.0,0.00041095,120]
[399024230,1766075031762,-500.0,0.00041095,120]
[399024231,1766075031832,-500.0,0.00041095,120]
[399024232,1766075031902,-500.0,0.00041095,120]
[399024233,1766075031970,-500.0,0.00041095,120]
[399024234,1766075032044,-500.0,0.00041095,120]
[399024235,1766075032115,-500.0,0.00041095,120]
[399024236,1766075032196,-500.0,0.00041095,120]
[399024237,1766075032275,-500.0,0.00041095,120]
[399024238,1766075032356,-500.0,0.00041095,120]
[399024239,1766075032440,-500.0,0.00041095,120]
[399024240,1766075032515,-500.0,0.00041095,120]
[399024241,1766075032591,-500.0,0.00041095,120]
[399024242,1766075032665,-500.0,0.00041095,120]
[399024243,1766075032740,-500.0,0.00041095,120]
[399024244,1766075032813,-500.0,0.00041095,120]
[399024245,1766075032892,-500.0,0.00041095,120]
[399024246,1766075032965,-500.0,0.00041095,120]
[399024247,1766075033043,-500.0,0.00041095,120]
[399024248,1766075033124,-500.0,0.00041095,120]
[399024249,1766075033200,-326.44,0.00041095,120]
[399024250,1766075033282,-685.45,0.00041095,120]
[399024251,1766075033361,-685.45,0.00041095,120]
[399024252,1766075033441,-685.45,0.00041095,120]
[399024253,1766075033521,-685.45,0.00041095,120]
[399024254,1766075033599,-214.59602579,0.00041095,120]
[399024255,1766075033674,-1731.6,0.00041095,120]
[399024256,1766075033746,-1731.6,0.00041095,120]
[399024257,1766075033818,-1731.6,0.00041095,120]
[399024258,1766075033892,-1731.6,0.00041095,120]
[399024259,1766075033964,-168.67925572,0.00041095,120]
[399024260,1766075034039,-500.0,0.00041095,120]
[399024261,1766075034116,-500.0,0.00041095,120]
[399024262,1766075034192,-500.0,0.00041095,120]
[399024263,1766075034268,-500.0,0.00041095,120]
[399024264,1766075034348,-500.0,0.00041095,120]
[399024265,1766075034422,-12401.96,0.00041095,120]
[399024266,1766075034504,-12401.96,0.00041095,120]
[399024267,1766075034582,-12401.96,0.00041095,120]
[399024268,1766075034655,-12401.96,0.00041095,120]
[399024269,1766075034728,-12401.96,0.00041095,120]
[399024270,1766075034801,-598.1,0.00041095,120]
[399024271,1766075034872,-900.0,0.00041095,120]
[399024272,1766075034953,-500.0,0.00041095,120]
[399024273,1766075035028,-500.0,0.00041095,120]
[399024274,1766075035104,-500.0,0.00041095,120]
[399024275,1766075035194,-500.0,0.00041095,120]
[399024276,1766075035282,-500.0,0.00041095,120]
[399024277,1766075035358,-500.0,0.00041095,120]
[399024278,1766075035432,-500.0,0.00041095,120]
[399024279,1766075035512,-500.0,0.00041095,120]
[399024280,1766075035590,-500.0,0.00041095,120]
[399024281,1766075035663,-500.0,0.00041095,120]
[399024282,1766075035736,-188.46,0.00041095,120]
[399024283,1766075035809,-500.0,0.00041095,120]
[399024284,1766075035885,-500.0,0.00041095,120]
[399024285,1766075035959,-500.0,0.00041095,120]
[399024286,1766075036033,-500.0,0.00041095,120]
[399024287,1766075036111,-500.0,0.00041095,120]